[Event "*** SCC Grand Prix: Titled Tuesday Blitz"]
[Site "Chess.com"]
[Date "2020.06.02"]
[Round "3"]
[White "TigrVShlyape"]
[Black "ZAbdumalik"]
[Result "0-1"]
[WhiteElo "2879"]
[BlackElo "2662"]
[TimeControl "180+1"]
[EndTime "10:29:13 PDT"]
[Termination "ZAbdumalik won by resignation"]

1. d4 {[%clk 0:03:00.9]} 1... Nf6 {[%clk 0:02:59.5]} 2. Nf3 {[%clk 0:03:00.3]}
2... g6 {[%clk 0:02:59.5]} 3. c3 {[%clk 0:02:59.3]} 3... Bg7 {[%clk 0:02:58.7]}
4. Bf4 {[%clk 0:02:58.4]} 4... O-O {[%clk 0:02:58.2]} 5. Nbd2 {[%clk 0:02:54.9]}
5... d6 {[%clk 0:02:58.7]} 6. h3 {[%clk 0:02:54.2]} 6... c5 {[%clk 0:02:58.7]}
7. dxc5 {[%clk 0:02:53.6]} 7... dxc5 {[%clk 0:02:58.2]} 8. e4 {[%clk 0:02:54.1]}
8... Nc6 {[%clk 0:02:57.6]} 9. Be2 {[%clk 0:02:52.9]} 9... b6 {[%clk 0:02:51.6]}
10. e5 {[%clk 0:02:46.2]} 10... Nd5 {[%clk 0:02:47.4]} 11. Bg3 {[%clk
0:02:43.3]} 11... Bf5 {[%clk 0:02:40.6]} 12. O-O {[%clk 0:02:15.9]} 12... Qd7
{[%clk 0:02:35.8]} 13. Re1 {[%clk 0:02:08.3]} 13... Rad8 {[%clk 0:02:35.3]} 14.
Bc4 {[%clk 0:02:01.9]} 14... Nc7 {[%clk 0:02:32.5]} 15. Qe2 {[%clk 0:01:56.5]}
15... Qc8 {[%clk 0:02:15.6]} 16. a4 {[%clk 0:01:48.7]} 16... Bh6 {[%clk
0:02:03.5]} 17. Ne4 {[%clk 0:01:42.7]} 17... Nd5 {[%clk 0:01:49.5]} 18. Nfg5
{[%clk 0:01:26.4]} 18... Na5 {[%clk 0:01:43.7]} 19. Ba6 {[%clk 0:01:18.9]} 19...
Qa8 {[%clk 0:01:39.6]} 20. Bh2 {[%clk 0:01:14.9]} 20... Nc7 {[%clk 0:01:30.3]}
21. Bd3 {[%clk 0:01:11.2]} 21... Bxg5 {[%clk 0:01:24.6]} 22. Nxg5 {[%clk
0:01:05.6]} 22... Bxd3 {[%clk 0:01:23.5]} 23. Qg4 {[%clk 0:01:04.6]} 23... h6
{[%clk 0:01:18.8]} 24. e6 {[%clk 0:00:57.3]} 24... hxg5 {[%clk 0:01:15.1]} 25.
Bxc7 {[%clk 0:00:52.7]} 25... Rd5 {[%clk 0:01:14.9]} 26. b4 {[%clk 0:00:37.2]}
26... Nc4 {[%clk 0:01:12.9]} 27. Rad1 {[%clk 0:00:34]} 27... Qc6 {[%clk
0:01:10.8]} 28. Rxd3 {[%clk 0:00:29.8]} 28... Rxd3 {[%clk 0:01:05]} 29. Qxc4
{[%clk 0:00:29.8]} 29... Qd5 {[%clk 0:01:01.8]} 30. Qg4 {[%clk 0:00:29.7]} 30...
f6 {[%clk 0:00:58]} 31. b5 {[%clk 0:00:27.2]} 31... Rc8 {[%clk 0:00:56.5]} 32.
Bg3 {[%clk 0:00:26.6]} 32... Rd8 {[%clk 0:00:56.5]} 33. Kh2 {[%clk 0:00:26]}
33... Kg7 {[%clk 0:00:55.3]} 34. c4 {[%clk 0:00:24]} 34... Qf5 {[%clk
0:00:52.6]} 35. Qe2 {[%clk 0:00:24.2]} 35... R3d4 {[%clk 0:00:47.3]} 36. a5
{[%clk 0:00:23.9]} 36... Rc8 {[%clk 0:00:41.9]} 37. axb6 {[%clk 0:00:23.6]}
37... axb6 {[%clk 0:00:42.1]} 38. Qa2 {[%clk 0:00:24.3]} 38... Re4 {[%clk
0:00:35.1]} 39. Rxe4 {[%clk 0:00:24.1]} 39... Qxe4 {[%clk 0:00:35.1]} 40. Qa7
{[%clk 0:00:22]} 40... Qxe6 {[%clk 0:00:35]} 41. Bc7 {[%clk 0:00:21.2]} 41...
Qxc4 {[%clk 0:00:32]} 42. Bxb6 {[%clk 0:00:21.1]} 42... Qf4+ {[%clk 0:00:32.1]}
43. Kg1 {[%clk 0:00:21]} 43... Qe5 {[%clk 0:00:31.9]} 44. g3 {[%clk 0:00:20]}
44... c4 {[%clk 0:00:31.7]} 45. Bd4 {[%clk 0:00:20.3]} 45... Qe6 {[%clk
0:00:31.1]} 46. b6 {[%clk 0:00:19.8]} 46... Qd6 {[%clk 0:00:27.3]} 47. b7 {[%clk
0:00:19.9]} 47... Rb8 {[%clk 0:00:25.9]} 48. Bb6 {[%clk 0:00:19.7]} 48... c3
{[%clk 0:00:24]} 49. Be3 {[%clk 0:00:19.8]} 49... c2 {[%clk 0:00:23.7]} 50. Kh2
{[%clk 0:00:19.4]} 50... Qc7 {[%clk 0:00:23.3]} 51. Qa3 {[%clk 0:00:18.3]} 51...
Rxb7 {[%clk 0:00:22.8]} 0-1

[Event "*** SCC Grand Prix: Titled Tuesday Blitz"]
[Site "Chess.com"]
[Date "2020.06.02"]
[Round "3"]
[White "regular_legs"]
[Black "eCztery"]
[Result "1-0"]
[WhiteElo "2558"]
[BlackElo "2356"]
[TimeControl "180+1"]
[EndTime "10:29:13 PDT"]
[Termination "regular_legs won by resignation"]

1. e4 {[%clk 0:03:00]} 1... c5 {[%clk 0:02:58.7]} 2. Nf3 {[%clk 0:02:58.3]} 2...
g6 {[%clk 0:02:53.9]} 3. d4 {[%clk 0:02:52.5]} 3... cxd4 {[%clk 0:02:54.8]} 4.
Nxd4 {[%clk 0:02:53.4]} 4... Nc6 {[%clk 0:02:52.6]} 5. c4 {[%clk 0:02:53.4]}
5... Nf6 {[%clk 0:02:51.9]} 6. Nc3 {[%clk 0:02:53.1]} 6... Nxd4 {[%clk
0:02:52.5]} 7. Qxd4 {[%clk 0:02:52.7]} 7... d6 {[%clk 0:02:53.4]} 8. f3 {[%clk
0:02:50.5]} 8... Bg7 {[%clk 0:02:54]} 9. Be3 {[%clk 0:02:50.9]} 9... O-O {[%clk
0:02:54.4]} 10. Qd2 {[%clk 0:02:51.6]} 10... a5 {[%clk 0:02:54.7]} 11. Na4
{[%clk 0:02:44.6]} 11... Nd7 {[%clk 0:02:15.2]} 12. h4 {[%clk 0:02:38.2]} 12...
Nc5 {[%clk 0:02:01]} 13. Nc3 {[%clk 0:02:22.9]} 13... a4 {[%clk 0:01:56.2]} 14.
h5 {[%clk 0:02:21]} 14... Be6 {[%clk 0:01:54]} 15. hxg6 {[%clk 0:02:20]} 15...
fxg6 {[%clk 0:01:51.1]} 16. Bd4 {[%clk 0:02:18.3]} 16... h5 {[%clk 0:01:36.9]}
17. Bxg7 {[%clk 0:02:14.2]} 17... Kxg7 {[%clk 0:01:37.8]} 18. Be2 {[%clk
0:02:09.6]} 18... Rh8 {[%clk 0:01:28.7]} 19. Qd4+ {[%clk 0:02:08.2]} 19... Kg8
{[%clk 0:01:28.2]} 20. e5 {[%clk 0:02:07.4]} 20... Qb6 {[%clk 0:01:22.9]} 21.
exd6 {[%clk 0:02:00]} 21... exd6 {[%clk 0:01:16.6]} 22. O-O-O {[%clk 0:01:53.4]}
22... a3 {[%clk 0:01:09.4]} 23. Nb5 {[%clk 0:01:37.4]} 23... Nb3+ {[%clk
0:01:02.5]} 24. axb3 {[%clk 0:01:35.4]} 24... Qxd4 {[%clk 0:01:00.7]} 25. Nxd4
{[%clk 0:01:35.1]} 25... a2 {[%clk 0:01:00.9]} 26. Kc2 {[%clk 0:01:34.5]} 26...
Kf7 {[%clk 0:00:54]} 27. Nxe6 {[%clk 0:01:32.1]} 27... Kxe6 {[%clk 0:00:54.9]}
28. Bd3 {[%clk 0:01:33]} 28... Rhc8 {[%clk 0:00:54]} 29. Be4 {[%clk 0:01:29.6]}
29... Ra5 {[%clk 0:00:50.1]} 30. Bxb7 {[%clk 0:01:28]} 30... Rc7 {[%clk
0:00:45.9]} 31. Bd5+ {[%clk 0:01:27.6]} 31... Ke5 {[%clk 0:00:43.7]} 32. Rhe1+
{[%clk 0:01:25.4]} 32... Kf4 {[%clk 0:00:42.2]} 33. b4 {[%clk 0:01:24.4]} 33...
a1=Q {[%clk 0:00:40.4]} 34. Rxa1 {[%clk 0:01:18.2]} 34... Rxd5 {[%clk
0:00:40.7]} 35. b3 {[%clk 0:01:17.6]} 35... Rg5 {[%clk 0:00:36.6]} 36. Re2
{[%clk 0:01:17.1]} 36... Kg3 {[%clk 0:00:33.4]} 37. Ra5 {[%clk 0:01:16]} 37...
Rf5 {[%clk 0:00:28.3]} 38. Rxf5 {[%clk 0:01:15.2]} 38... gxf5 {[%clk 0:00:29.2]}
39. Kc3 {[%clk 0:01:15.4]} 39... h4 {[%clk 0:00:29.2]} 40. Rd2 {[%clk
0:01:09.2]} 40... f4 {[%clk 0:00:25.8]} 41. b5 {[%clk 0:01:07.3]} 41... h3
{[%clk 0:00:25.8]} 42. gxh3 {[%clk 0:01:07.3]} 42... Kxf3 {[%clk 0:00:26.7]} 43.
Rxd6 {[%clk 0:01:07.6]} 43... Kg3 {[%clk 0:00:23.7]} 44. b6 {[%clk 0:01:07.7]}
44... Rf7 {[%clk 0:00:23]} 45. c5 {[%clk 0:01:08.1]} 45... f3 {[%clk 0:00:23.4]}
46. Rd1 {[%clk 0:01:07.7]} 46... f2 {[%clk 0:00:18.8]} 47. b4 {[%clk 0:01:03.3]}
47... Kg2 {[%clk 0:00:16.5]} 48. c6 {[%clk 0:01:02.1]} 48... Re7 {[%clk
0:00:16.7]} 49. Rd2 {[%clk 0:01:00.8]} 49... Re3+ {[%clk 0:00:14.4]} 50. Kc4
{[%clk 0:01:00.5]} 50... Re4+ {[%clk 0:00:09.5]} 51. Kb5 {[%clk 0:01:00.1]}
51... Re5+ {[%clk 0:00:07]} 52. Ka6 {[%clk 0:00:59.9]} 52... Rd5 {[%clk
0:00:04.4]} 53. Rxf2+ {[%clk 0:00:58.8]} 53... Kxf2 {[%clk 0:00:05.3]} 54. c7
{[%clk 0:00:59.1]} 1-0

[Event "*** SCC Grand Prix: Titled Tuesday Blitz"]
[Site "Chess.com"]
[Date "2020.06.02"]
[Round "3"]
[White "TheoSlade"]
[Black "Vision_64"]
[Result "1-0"]
[WhiteElo "2366"]
[BlackElo "2149"]
[TimeControl "180+1"]
[EndTime "10:29:14 PDT"]
[Termination "TheoSlade won by resignation"]

1. d4 {[%clk 0:03:00.9]} 1... Nf6 {[%clk 0:02:59.5]} 2. c4 {[%clk 0:03:01.3]}
2... e6 {[%clk 0:02:59.9]} 3. g3 {[%clk 0:03:01.8]} 3... d5 {[%clk 0:02:57.2]}
4. Bg2 {[%clk 0:03:02.2]} 4... dxc4 {[%clk 0:02:53.2]} 5. Nf3 {[%clk 0:03:02.5]}
5... Nc6 {[%clk 0:02:52.4]} 6. Qa4 {[%clk 0:03:02.4]} 6... Bd7 {[%clk
0:02:46.8]} 7. Qxc4 {[%clk 0:02:58.9]} 7... Bd6 {[%clk 0:02:45.2]} 8. O-O {[%clk
0:02:56.9]} 8... O-O {[%clk 0:02:44.4]} 9. Nc3 {[%clk 0:02:53.1]} 9... a6 {[%clk
0:02:29.4]} 10. e4 {[%clk 0:02:41.9]} 10... e5 {[%clk 0:02:29]} 11. d5 {[%clk
0:02:41.4]} 11... Ne7 {[%clk 0:02:26.9]} 12. Bg5 {[%clk 0:02:34.1]} 12... Ng6
{[%clk 0:02:25.3]} 13. Rac1 {[%clk 0:02:27.1]} 13... h6 {[%clk 0:02:24.1]} 14.
Be3 {[%clk 0:02:20.6]} 14... Ne8 {[%clk 0:02:21.7]} 15. Nd2 {[%clk 0:02:17.1]}
15... f5 {[%clk 0:02:20.2]} 16. exf5 {[%clk 0:02:13.7]} 16... Bxf5 {[%clk
0:02:18.7]} 17. Nde4 {[%clk 0:02:11.7]} 17... Rc8 {[%clk 0:02:15.6]} 18. Rfd1
{[%clk 0:02:06.4]} 18... Ne7 {[%clk 0:02:06.4]} 19. Qe2 {[%clk 0:02:02]} 19...
Nf6 {[%clk 0:01:51.1]} 20. Nxf6+ {[%clk 0:01:59.3]} 20... Rxf6 {[%clk
0:01:49.4]} 21. Ne4 {[%clk 0:01:59.8]} 21... Bxe4 {[%clk 0:01:47.6]} 22. Bxe4
{[%clk 0:02:00.7]} 22... Nf5 {[%clk 0:01:46.7]} 23. Bxf5 {[%clk 0:01:46.9]}
23... Rxf5 {[%clk 0:01:47.6]} 24. Qd3 {[%clk 0:01:44.4]} 24... Qf8 {[%clk
0:01:39.8]} 25. Qe4 {[%clk 0:01:44.5]} 25... Re8 {[%clk 0:01:32.9]} 26. Kg2
{[%clk 0:01:44.6]} 26... Qf7 {[%clk 0:01:18.7]} 27. b4 {[%clk 0:01:41.6]} 27...
Rf8 {[%clk 0:01:16.5]} 28. Rc2 {[%clk 0:01:39.4]} 28... Qh5 {[%clk 0:01:10.8]}
29. Rdc1 {[%clk 0:01:32.6]} 29... Qg6 {[%clk 0:00:41.9]} 30. Rc4 {[%clk
0:01:14.7]} 30... Qf7 {[%clk 0:00:31.6]} 31. R1c2 {[%clk 0:01:14.5]} 31... Kh8
{[%clk 0:00:29.2]} 32. a4 {[%clk 0:01:13.8]} 32... Qe7 {[%clk 0:00:16.7]} 33. b5
{[%clk 0:01:13.1]} 33... axb5 {[%clk 0:00:16.2]} 34. axb5 {[%clk 0:01:14]} 34...
b6 {[%clk 0:00:16.7]} 35. Ra4 {[%clk 0:01:08.5]} 35... Qf7 {[%clk 0:00:15.1]}
36. Ra7 {[%clk 0:01:04.5]} 36... Qd7 {[%clk 0:00:13.7]} 37. Bxb6 {[%clk
0:00:59.6]} 37... Qxb5 {[%clk 0:00:13.7]} 38. Bxc7 {[%clk 0:00:59.8]} 38... Bc5
{[%clk 0:00:12.6]} 39. Raa2 {[%clk 0:00:52.9]} 39... Bd4 {[%clk 0:00:09]} 40. d6
{[%clk 0:00:51.1]} 40... Qd7 {[%clk 0:00:08.2]} 41. Re2 {[%clk 0:00:41.4]} 41...
Rh5 {[%clk 0:00:08.2]} 42. Kg1 {[%clk 0:00:35]} 42... Qh3 {[%clk 0:00:07.2]} 43.
Qg2 {[%clk 0:00:35.1]} 43... Qe6 {[%clk 0:00:06.4]} 44. Rad2 {[%clk 0:00:33.8]}
44... Rhf5 {[%clk 0:00:06.6]} 45. Rxd4 {[%clk 0:00:32.6]} 45... Qb3 {[%clk
0:00:05.2]} 46. Rdd2 {[%clk 0:00:25.9]} 46... Qb1+ {[%clk 0:00:04.8]} 47. Qf1
{[%clk 0:00:26.3]} 47... Qb7 {[%clk 0:00:04.4]} 48. Ba5 {[%clk 0:00:23.6]} 48...
Qc6 {[%clk 0:00:02.9]} 49. d7 {[%clk 0:00:22.3]} 49... Rf3 {[%clk 0:00:03.8]}
50. d8=Q {[%clk 0:00:21.7]} 1-0

[Event "*** SCC Grand Prix: Titled Tuesday Blitz"]
[Site "Chess.com"]
[Date "2020.06.02"]
[Round "3"]
[White "Klavdia_Nik"]
[Black "not_najdorfs_player"]
[Result "0-1"]
[WhiteElo "2062"]
[BlackElo "2308"]
[TimeControl "180+1"]
[EndTime "10:29:14 PDT"]
[Termination "not_najdorfs_player won on time"]

1. Nf3 {[%clk 0:03:00.9]} 1... d5 {[%clk 0:02:59.4]} 2. c4 {[%clk 0:03:01.1]}
2... e6 {[%clk 0:02:57.1]} 3. b3 {[%clk 0:03:01.4]} 3... Nf6 {[%clk 0:02:57.1]}
4. Bb2 {[%clk 0:03:01.8]} 4... Be7 {[%clk 0:02:57.5]} 5. g3 {[%clk 0:03:02.2]}
5... O-O {[%clk 0:02:57.9]} 6. Bg2 {[%clk 0:03:02.8]} 6... c5 {[%clk 0:02:58.1]}
7. O-O {[%clk 0:03:02.9]} 7... Nc6 {[%clk 0:02:58.6]} 8. d3 {[%clk 0:03:02.8]}
8... b6 {[%clk 0:02:57.9]} 9. cxd5 {[%clk 0:02:58.6]} 9... exd5 {[%clk
0:02:57.5]} 10. d4 {[%clk 0:02:58.8]} 10... Bb7 {[%clk 0:02:56.3]} 11. e3 {[%clk
0:02:57.9]} 11... Rc8 {[%clk 0:02:55.8]} 12. Nc3 {[%clk 0:02:51.8]} 12... a6
{[%clk 0:02:54.1]} 13. Rc1 {[%clk 0:02:50.1]} 13... Re8 {[%clk 0:02:53.2]} 14.
Qd3 {[%clk 0:02:44.2]} 14... Bf8 {[%clk 0:02:52.5]} 15. Rfd1 {[%clk 0:02:43.9]}
15... Qd7 {[%clk 0:02:12.9]} 16. dxc5 {[%clk 0:02:39.7]} 16... Bxc5 {[%clk
0:02:08.8]} 17. Nxd5 {[%clk 0:02:26.1]} 17... Nxd5 {[%clk 0:02:08.2]} 18. Qxd5
{[%clk 0:02:26.4]} 18... Qxd5 {[%clk 0:02:08.2]} 19. Rxd5 {[%clk 0:02:26.7]}
19... Nb4 {[%clk 0:02:08.1]} 20. Rg5 {[%clk 0:02:01.9]} 20... Nd3 {[%clk
0:01:55]} 21. Rxg7+ {[%clk 0:01:16.1]} 21... Kf8 {[%clk 0:01:53.7]} 22. Ng5
{[%clk 0:01:15]} 22... Nxb2 {[%clk 0:01:29.3]} 23. Rxf7+ {[%clk 0:01:11.8]}
23... Kg8 {[%clk 0:01:28.6]} 24. Bxb7 {[%clk 0:00:57.7]} 24... Rcd8 {[%clk
0:01:23.3]} 25. Rc7 {[%clk 0:00:24.8]} 25... Re7 {[%clk 0:01:07.5]} 26. Rxe7
{[%clk 0:00:17.4]} 26... Bxe7 {[%clk 0:01:08.4]} 27. Ne6 {[%clk 0:00:17.1]}
27... Rd6 {[%clk 0:00:57]} 28. Nd4 {[%clk 0:00:14]} 28... Bf6 {[%clk 0:00:49.3]}
29. Rc8+ {[%clk 0:00:13.7]} 29... Kf7 {[%clk 0:00:49.5]} 30. Nf5 {[%clk
0:00:11.8]} 30... Rd1+ {[%clk 0:00:48.6]} 31. Kg2 {[%clk 0:00:12.2]} 31... Nd3
{[%clk 0:00:37]} 32. Be4 {[%clk 0:00:11.9]} 32... Ne1+ {[%clk 0:00:36]} 33. Kh3
{[%clk 0:00:11.1]} 33... h5 {[%clk 0:00:32.9]} 34. Rc7+ {[%clk 0:00:11]} 34...
Ke8 {[%clk 0:00:28.8]} 35. Rc6 {[%clk 0:00:10.8]} 35... Bd8 {[%clk 0:00:26.6]}
36. Rh6 {[%clk 0:00:09.9]} 36... Rd2 {[%clk 0:00:24.2]} 37. Rxh5 {[%clk
0:00:07.6]} 37... Rxf2 {[%clk 0:00:23.5]} 38. Rh7 {[%clk 0:00:06.9]} 38... Bf6
{[%clk 0:00:19.8]} 39. Nd6+ {[%clk 0:00:06.2]} 39... Kd8 {[%clk 0:00:16.8]} 40.
Bc6 {[%clk 0:00:06]} 40... Be7 {[%clk 0:00:12.1]} 0-1

[Event "*** SCC Grand Prix: Titled Tuesday Blitz"]
[Site "Chess.com"]
[Date "2020.06.02"]
[Round "3"]
[White "Fusikk"]
[Black "amiralfio"]
[Result "1-0"]
[WhiteElo "2602"]
[BlackElo "2393"]
[TimeControl "180+1"]
[EndTime "10:29:15 PDT"]
[Termination "Fusikk won by resignation"]

1. d4 {[%clk 0:03:00.9]} 1... Nf6 {[%clk 0:02:55]} 2. c4 {[%clk 0:03:01.2]} 2...
g6 {[%clk 0:02:55.6]} 3. Nc3 {[%clk 0:03:00.7]} 3... d5 {[%clk 0:02:56.1]} 4.
Bf4 {[%clk 0:02:53.9]} 4... Bg7 {[%clk 0:02:52.2]} 5. e3 {[%clk 0:02:53.6]} 5...
O-O {[%clk 0:02:48.6]} 6. Rc1 {[%clk 0:02:53.7]} 6... c6 {[%clk 0:02:17.2]} 7.
h3 {[%clk 0:02:45.2]} 7... Bf5 {[%clk 0:02:01.7]} 8. Nf3 {[%clk 0:02:41.2]} 8...
Nbd7 {[%clk 0:01:55.3]} 9. c5 {[%clk 0:02:24.2]} 9... Ne4 {[%clk 0:01:53.3]} 10.
Bd3 {[%clk 0:02:18.1]} 10... e5 {[%clk 0:01:33.5]} 11. Nxe5 {[%clk 0:02:08]}
11... Nxe5 {[%clk 0:01:30.9]} 12. Bxe5 {[%clk 0:02:08]} 12... Bxe5 {[%clk
0:01:30.3]} 13. dxe5 {[%clk 0:02:08.9]} 13... Qg5 {[%clk 0:01:28.4]} 14. Bxe4
{[%clk 0:02:06.2]} 14... Bxe4 {[%clk 0:01:24.3]} 15. Nxe4 {[%clk 0:01:53.2]}
15... dxe4 {[%clk 0:01:25.2]} 16. O-O {[%clk 0:01:52.3]} 16... Qxe5 {[%clk
0:01:18.2]} 17. Qb3 {[%clk 0:01:51.1]} 17... Qe7 {[%clk 0:01:09.9]} 18. Rc4
{[%clk 0:01:44.7]} 18... Rfd8 {[%clk 0:01:06.7]} 19. Qb4 {[%clk 0:01:23]} 19...
f5 {[%clk 0:01:01.7]} 20. Rc3 {[%clk 0:01:10.2]} 20... b5 {[%clk 0:00:49.1]} 21.
Qa5 {[%clk 0:01:02.6]} 21... Rd2 {[%clk 0:00:40.5]} 22. b3 {[%clk 0:00:50.5]}
22... Rad8 {[%clk 0:00:39.4]} 23. Rcc1 {[%clk 0:00:48.2]} 23... Kg7 {[%clk
0:00:36.7]} 24. Qb4 {[%clk 0:00:38.6]} 24... Rxa2 {[%clk 0:00:31.7]} 25. Rfd1
{[%clk 0:00:37.4]} 25... a5 {[%clk 0:00:24.7]} 26. Qc3+ {[%clk 0:00:36.4]} 26...
Kh6 {[%clk 0:00:22.1]} 27. Rxd8 {[%clk 0:00:29.8]} 27... Qxd8 {[%clk 0:00:23]}
28. Qe5 {[%clk 0:00:29]} 28... Rd2 {[%clk 0:00:20.8]} 29. Ra1 {[%clk 0:00:26.3]}
29... Rd1+ {[%clk 0:00:14.9]} 30. Rxd1 {[%clk 0:00:26.3]} 30... Qxd1+ {[%clk
0:00:15.8]} 31. Kh2 {[%clk 0:00:27.2]} 31... Qd7 {[%clk 0:00:16.3]} 32. Qd6
{[%clk 0:00:24.4]} 32... Qc8 {[%clk 0:00:11.6]} 33. Qe7 {[%clk 0:00:18.7]} 33...
a4 {[%clk 0:00:05.3]} 34. bxa4 {[%clk 0:00:19.6]} 34... bxa4 {[%clk 0:00:05.9]}
35. Qa7 {[%clk 0:00:19.8]} 35... Kg5 {[%clk 0:00:04.1]} 36. Qxa4 {[%clk
0:00:19.6]} 36... Qb8+ {[%clk 0:00:04.2]} 37. g3 {[%clk 0:00:19.1]} 37... Qe5
{[%clk 0:00:03.8]} 38. Qxc6 {[%clk 0:00:17.7]} 38... Qb2 {[%clk 0:00:03.8]} 39.
Kg2 {[%clk 0:00:17.4]} 39... Qe2 {[%clk 0:00:03.9]} 40. Qd6 {[%clk 0:00:16.5]}
40... Qf3+ {[%clk 0:00:03.9]} 41. Kg1 {[%clk 0:00:16.6]} 41... Kh5 {[%clk
0:00:02.5]} 42. c6 {[%clk 0:00:16.2]} 1-0

[Event "*** SCC Grand Prix: Titled Tuesday Blitz"]
[Site "Chess.com"]
[Date "2020.06.02"]
[Round "3"]
[White "Colombiano07"]
[Black "flexova"]
[Result "1-0"]
[WhiteElo "2337"]
[BlackElo "2479"]
[TimeControl "180+1"]
[EndTime "10:29:15 PDT"]
[Termination "Colombiano07 won on time"]

1. Nf3 {[%clk 0:03:00.9]} 1... Nf6 {[%clk 0:02:58.5]} 2. b3 {[%clk 0:03:01.8]}
2... c5 {[%clk 0:02:37.6]} 3. Bb2 {[%clk 0:03:02.7]} 3... e6 {[%clk 0:02:28.8]}
4. e3 {[%clk 0:03:03.6]} 4... b6 {[%clk 0:02:28.1]} 5. Be2 {[%clk 0:03:03.4]}
5... Bb7 {[%clk 0:02:27.9]} 6. O-O {[%clk 0:03:04.3]} 6... Be7 {[%clk
0:02:27.5]} 7. c4 {[%clk 0:03:04.9]} 7... O-O {[%clk 0:02:26.9]} 8. d3 {[%clk
0:03:04.6]} 8... d5 {[%clk 0:02:23]} 9. cxd5 {[%clk 0:03:05]} 9... Nxd5 {[%clk
0:02:21.6]} 10. Nbd2 {[%clk 0:03:05.5]} 10... Bf6 {[%clk 0:02:18.3]} 11. Qc2
{[%clk 0:03:03.3]} 11... Nb4 {[%clk 0:02:15.6]} 12. Qb1 {[%clk 0:03:03.3]} 12...
Bxb2 {[%clk 0:02:14.8]} 13. Qxb2 {[%clk 0:02:59.9]} 13... Nxd3 {[%clk 0:02:15]}
14. Qb1 {[%clk 0:02:14.4]} 14... Nb4 {[%clk 0:02:12.7]} 15. a3 {[%clk
0:02:14.2]} 15... Nd5 {[%clk 0:02:09.9]} 16. Rc1 {[%clk 0:02:14.7]} 16... Nc6
{[%clk 0:02:00.9]} 17. Qc2 {[%clk 0:02:10.5]} 17... Qe7 {[%clk 0:01:55.3]} 18.
Rd1 {[%clk 0:02:08]} 18... Rfd8 {[%clk 0:01:51.5]} 19. Rac1 {[%clk 0:02:05.2]}
19... h6 {[%clk 0:01:51.3]} 20. h3 {[%clk 0:02:03.3]} 20... Rac8 {[%clk
0:01:40.3]} 21. Qb1 {[%clk 0:01:58.3]} 21... Nf6 {[%clk 0:01:19]} 22. Nc4 {[%clk
0:01:55]} 22... Rxd1+ {[%clk 0:01:16.8]} 23. Rxd1 {[%clk 0:01:55.9]} 23... Rd8
{[%clk 0:01:16.5]} 24. Rxd8+ {[%clk 0:01:51.6]} 24... Qxd8 {[%clk 0:01:16.2]}
25. Qb2 {[%clk 0:01:52.5]} 25... Qd5 {[%clk 0:01:08.7]} 26. Nfd2 {[%clk
0:01:45.7]} 26... Ne5 {[%clk 0:00:47.4]} 27. f3 {[%clk 0:01:07.9]} 27... Nxc4
{[%clk 0:00:45.8]} 28. Nxc4 {[%clk 0:01:06.5]} 28... Nd7 {[%clk 0:00:39.2]} 29.
Kf2 {[%clk 0:01:04]} 29... a6 {[%clk 0:00:35.4]} 30. a4 {[%clk 0:01:02]} 30...
b5 {[%clk 0:00:32]} 31. axb5 {[%clk 0:01:02.9]} 31... axb5 {[%clk 0:00:31.7]}
32. Na3 {[%clk 0:01:01.4]} 32... b4 {[%clk 0:00:23.7]} 33. Nc4 {[%clk
0:01:01.9]} 33... Ba6 {[%clk 0:00:21.2]} 34. Qa2 {[%clk 0:01:02]} 34... Bxc4
{[%clk 0:00:19]} 35. Bxc4 {[%clk 0:01:02.9]} 35... Qc6 {[%clk 0:00:17.5]} 36.
Qa7 {[%clk 0:01:01.5]} 36... Ne5 {[%clk 0:00:16.5]} 37. Qb8+ {[%clk 0:01:00.5]}
37... Kh7 {[%clk 0:00:15.2]} 38. Qxe5 {[%clk 0:01:01.2]} 38... g6 {[%clk
0:00:13]} 39. Qf6 {[%clk 0:01:00.4]} 39... Qd7 {[%clk 0:00:12.9]} 40. Qb2 {[%clk
0:00:57.7]} 40... h5 {[%clk 0:00:12]} 41. Ke2 {[%clk 0:00:57.3]} 41... Qd6
{[%clk 0:00:12.1]} 42. f4 {[%clk 0:00:56.5]} 42... Qc6 {[%clk 0:00:11.5]} 43.
Kf2 {[%clk 0:00:55.6]} 43... Qe4 {[%clk 0:00:11.9]} 44. Qf6 {[%clk 0:00:53.5]}
44... Qc2+ {[%clk 0:00:10.7]} 45. Kg3 {[%clk 0:00:49.7]} 45... Kg8 {[%clk
0:00:07.9]} 46. Qe5 {[%clk 0:00:43.1]} 46... Qd2 {[%clk 0:00:04.2]} 47. Qxc5
{[%clk 0:00:42.6]} 47... Qe1+ {[%clk 0:00:04.5]} 48. Kh2 {[%clk 0:00:42.6]}
48... h4 {[%clk 0:00:05.1]} 49. Qg5 {[%clk 0:00:31.1]} 49... Kg7 {[%clk
0:00:04.6]} 50. e4 {[%clk 0:00:27.7]} 1-0